CIG;Contratto/ODA;Tipo;Rif. contratto quadro;Fornitore;CF aggiudicatario;Oggetto dell�affidamento;Categoria merceologica;Data firma contratto;Data di inizio;Data ultimazione;Tempi di completamento;Somme liquidate PreFix;Somme liquidate (+IVA);Struttura proponente;CF stazione appaltante;Procedura di scelta ex codice appalti;Importo aggiudicato (+ IVA) esclusa CPA (netto) in Euro;Elenco partecipanti
8665765F7D;2021-001151;Ordine;;ETTORE PASQUALI S.R.L.;04892610157;ETTORE PASQUALI;Attrezzature da laboratorio, ottiche e di precisione.;18/11/2022;22/12/2021;22/12/2021;0;4.097,00;4.097,00;Facility Management;97425580152;33-PROCEDURA NEGOZIATA PER AFFIDAMENTI SOTTO SOGLIA;4.097,00;
ZC037A6133;2022-000874;Ordine;;UNIVERSITA' CATTOLICA DEL SACRO CUORE;02133120150;Cessione di odore;Servizi di prove tecniche, analisi, di laboratorio e relativa consulenza;05/10/2022;05/10/2022;05/10/2022;0;150,00;150,00;LAB. PRODOTTI VERNICIANTI;97425580152;23-AFFIDAMENTO DIRETTO;150,00;
Z2337F4324;2022-000988;Ordine;;"VEOLIA WATER TECHNOLOGIES ITALIA SPA		";03129770156;filtro dissabbiatore;Servizi di riparazione e manutenzione di attrezzature da laboratorio;05/10/2022;05/10/2022;05/10/2022;0;870,00;870,00;LAB. PRODOTTI VERNICIANTI;97425580152;23-AFFIDAMENTO DIRETTO;870,00;
ZE037F49F6;2022-000992;Ordine;;GRUPPO C.S.A.  S.P.A.;03231410402;Analisi laboratorio esterne;Servizi di prove tecniche, analisi, di laboratorio e relativa consulenza;03/10/2022;03/10/2022;03/10/2022;0;225,00;225,00;LABORATORIO CARTA;97425580152;23-AFFIDAMENTO DIRETTO;300,00;
ZBC37F4C06;2022-000998;Ordine;;RAJAPACK S.R.L.;04921880961;Saldatrice per sacchetti e consumabili;"Apparecchiature e atrezzature e forniture informatiche; Attrezzature da laboratorio, ottiche e di precisione.";03/10/2022;03/10/2022;03/10/2022;0;345,36;345,36;LABORATORIO CARTA;97425580152;23-AFFIDAMENTO DIRETTO;369,10;
Z6737F47BE;2022-001000;Ordine;;2 EMME SRL;00395300122;Acquisto pannello elettrico frigo sala pesatura filtri;Servizi di riparazione e manutenzione di attrezzature da laboratorio;12/10/2022;12/10/2022;12/10/2022;0;0,00;0,00;LABORATORIO EMISSIONI;97425580152;23-AFFIDAMENTO DIRETTO;210,00;
8665765F7D;2022-001001;Ordine;;ETTORE PASQUALI S.R.L.;04892610157;ETTORE PASQUALI;Attrezzature da laboratorio, ottiche e di precisione.;03/10/2022;03/10/2022;03/10/2022;0;1.161,50;1.161,50;Facility Management;97425580152;23-AFFIDAMENTO DIRETTO;1.161,50;
ZF637F7621;2022-001003;Ordine;;VACCANI LUGI SRL;11499670963;Materiale per compostabilit�;Attrezzature da laboratorio, ottiche e di precisione.;10/10/2022;10/10/2022;10/10/2022;0;277,20;277,20;LABORATORIO CARTA;97425580152;23-AFFIDAMENTO DIRETTO;277,20;
ZB737FF256;2022-001004;Ordine;;VACCANI LUGI SRL;11499670963;scarpe antinfortunistica;Indumenti e calzature ad uso professionale, speciale e accessori;04/10/2022;04/10/2022;04/10/2022;0;218,85;218,85;Facility Management;97425580152;23-AFFIDAMENTO DIRETTO;218,85;
ZD837FF654;2022-001005;Ordine;;ETTORE PASQUALI S.R.L.;04892610157;Filtri WHATMANN;Attrezzature da laboratorio, ottiche e di precisione.;04/10/2022;04/10/2022;04/10/2022;0;1.750,00;1.750,00;Facility Management;97425580152;23-AFFIDAMENTO DIRETTO;1.750,00;
Z6A37FFCF5;2022-001006;Ordine;;PACKAGING MEETING SRL CONSULENZA E FORMAZIONE;12464120158;Corso di formazione;Servizi di istruzione e formazione;10/10/2022;10/10/2022;10/10/2022;0;900,00;900,00;RISORSE UMANE E ORGANIZZAZIONE;97425580152;23-AFFIDAMENTO DIRETTO;900,00;
ZA937FE4C2;2022-001007;Ordine;;UNI - ENTE NAZIONALE ITALIANO DI UNIFICAZIONE;80037830157;FT. UNI AGOSTO-SETTEMBRE;Servizi di prove tecniche, analisi, di laboratorio e relativa consulenza;04/10/2022;04/10/2022;04/10/2022;0;0,00;0,00;NORMAZIONE;97425580152;23-AFFIDAMENTO DIRETTO;267,75;
Z723802F28;2022-001008;Ordine;;AGILENT TECHNOLOGIES ITALIA SPA;12785290151;Acquisto consumabili Agilent;Attrezzature da laboratorio, ottiche e di precisione.;04/10/2022;04/10/2022;04/10/2022;0;3.344,00;3.344,00;"LAB. SOSTANZE GRASSE, DERIVATI E TECNOLOGIE OLEARIE; CROMATOGRAFIA";97425580152;23-AFFIDAMENTO DIRETTO;3.344,00;
Z493803F8F;2022-001010;Ordine;;RS COMPONENTS S.P.A.;10578740150;Nastro in Alluminio;Cancelleria, materiale e attrezzature di consumo per ufficio;04/10/2022;04/10/2022;04/10/2022;0;444,00;444,00;Facility Management;97425580152;23-AFFIDAMENTO DIRETTO;444,00;
ZC238040CC;2022-001011;Ordine;;ERREBIAN S.P.A.;08397890586;Cancelleria;Cancelleria, materiale e attrezzature di consumo per ufficio;06/10/2022;06/10/2022;06/10/2022;0;159,32;159,32;Facility Management;97425580152;23-AFFIDAMENTO DIRETTO;165,92;
Z693312E90;2022-001012;Ordine;;THERMO FISHER SCIENTIFIC S.P.A.;07817950152;CRD_Dionex_IEC;Attrezzature da laboratorio, ottiche e di precisione.;07/10/2022;07/10/2022;07/10/2022;0;888,00;888,00;CROMATOGRAFIA;97425580152;23-AFFIDAMENTO DIRETTO;888,00;
Z143805B6F;2022-001013;Ordine;;AGILENT TECHNOLOGIES ITALIA SPA;12785290151;Relocation_ICP-OES_Agilent;Servizi di riparazione e manutenzione di attrezzature da laboratorio;07/10/2022;07/10/2022;07/10/2022;0;7.221,45;7.221,45;ANALISI DEGLI ELEMENTI;97425580152;23-AFFIDAMENTO DIRETTO;7.221,45;
Z73380616E;2022-001014;Ordine;;ETTORE PASQUALI S.R.L.;04892610157;Riparazione 2 bagnomaria Folegatti off OR 2022 9 e off OR 2022 10;Servizi di riparazione e manutenzione di attrezzature da laboratorio;07/10/2022;07/10/2022;07/10/2022;0;468,00;468,00;LAB. SOSTANZE GRASSE, DERIVATI E TECNOLOGIE OLEARIE;97425580152;23-AFFIDAMENTO DIRETTO;468,00;
Z343808274;2022-001015;Ordine;;CHEMISERVICE S.R.L.;04262080726;Analisi subappalto pesticidi;Servizi di prove tecniche, analisi, di laboratorio e relativa consulenza;14/10/2022;14/10/2022;14/10/2022;0;171,00;171,00;LAB. SOSTANZE GRASSE, DERIVATI E TECNOLOGIE OLEARIE;97425580152;23-AFFIDAMENTO DIRETTO;171,00;
Z163809AB9;2022-001016;Ordine;;VWR INTERNATIONAL SRL;12864800151;Glass filter  25mm VWR;Attrezzature da laboratorio, ottiche e di precisione.;14/10/2022;14/10/2022;14/10/2022;0;113,50;113,50;LAB. COSMETICA E DETERGENZA;97425580152;23-AFFIDAMENTO DIRETTO;81,50;
ZF5380A6C9;2022-001017;Ordine;;SIAD S.P.A.;00209070168;bombola CH4 in CO2- 0.1% di CH4 resto CO2 in bombola da 10 l;Prodotti derivati dal petrolio;12/10/2022;12/10/2022;12/10/2022;0;0,00;0,00;LABORATORIO EMISSIONI;97425580152;23-AFFIDAMENTO DIRETTO;300,00;
Z6D37C9330;2022-000901;Contratto;2022-000884;IMCD ITALIA SPA;03525700153;Manutenzione preventiva e correttiva strumentazione QLAB IMCD biennio 1/12/22 al 30/11/24 - Lab. prodotti vernicianti - Area Oli e Grassi;Servizi di riparazione e manutenzione di attrezzature da laboratorio;14/10/2022;06/10/2022;30/11/2024;365;0,00;0,00;LAB. PRODOTTI VERNICIANTI;97425580152;23-AFFIDAMENTO DIRETTO;38.000,00;
Z263815953;2022-001019;Ordine;;STUDIO TORTA SPA;06589950010;SPESE BREVETTO;Servizi di ricerca e sviluppo e relativi Servizi di consulenza;17/10/2022;17/10/2022;17/10/2022;0;184,50;184,50;LABORATORIO SETA;97425580152;23-AFFIDAMENTO DIRETTO;184,50;
ZBF381838B;2022-001020;Ordine;;FISHER SCIENTIFIC SAS;08948430965;FISHER CHEMICAL;Sostanze chimiche;11/10/2022;11/10/2022;11/10/2022;0;0,00;0,00;Facility Management;97425580152;23-AFFIDAMENTO DIRETTO;1.869,66;
ZBD381810B;2022-001021;Ordine;;MERCK LIFE SCIENCE S.R.L.;13209130155;Tubi da dialisi;Attrezzature da laboratorio, ottiche e di precisione.;17/10/2022;17/10/2022;17/10/2022;0;216,00;216,00;LABORATORIO SETA;97425580152;23-AFFIDAMENTO DIRETTO;216,00;
ZF93818864;2022-001022;Ordine;;SRA INSTRUMENTS ITALIA S.P.A.;12844250154;Acquisto consumabili SRA;Attrezzature da laboratorio, ottiche e di precisione.;12/10/2022;12/10/2022;12/10/2022;0;3.461,10;3.461,10;"LAB. SOSTANZE GRASSE, DERIVATI E TECNOLOGIE OLEARIE; CROMATOGRAFIA";97425580152;23-AFFIDAMENTO DIRETTO;3.461,10;
ZE02E5AD52;2022-001024;Ordine;;RPS RIELLO POWER SOLUTIONS SPA;02647040233;RPS RIELLO FT. V1/2022/110299;Servizi di riparazione e manutenzione di impianti di edifici;11/10/2022;11/10/2022;11/10/2022;0;1.200,00;300,00;Facility Management;97425580152;23-AFFIDAMENTO DIRETTO;300,00;
ZE02E5AD52;2022-001025;Ordine;;RPS RIELLO POWER SOLUTIONS SPA;02647040233;RPS RIELLO FT. V1/2022/110299;Servizi di riparazione e manutenzione di impianti di edifici;11/10/2022;11/10/2022;11/10/2022;0;1.200,00;900,00;Facility Management;97425580152;23-AFFIDAMENTO DIRETTO;900,00;
Z36381C787;2022-001026;Ordine;;ALD MOTORSERVICE SRL;08608260967;riparazione vw golf;Servizi di riparazione, manutenzione e affini di veicoli e attrezzature connesse;13/10/2022;13/10/2022;13/10/2022;0;342,66;342,66;Facility Management;97425580152;23-AFFIDAMENTO DIRETTO;342,66;
Z55381E188;2022-001027;Ordine;;DALLAGIOVANNA E C.;10146280960;MAN.ASCENSORI COS.044-757;Servizi di riparazione e manutenzione di impianti di edifici;13/10/2022;13/10/2022;13/10/2022;0;245,00;245,00;Facility Management;97425580152;23-AFFIDAMENTO DIRETTO;245,00;
ZF0381E31C;2022-001028;Ordine;;ETTORE PASQUALI S.R.L.;04892610157;vetreria no gara;Attrezzature da laboratorio, ottiche e di precisione.;13/10/2022;13/10/2022;13/10/2022;0;643,30;643,30;Facility Management;97425580152;23-AFFIDAMENTO DIRETTO;773,60;
ZA138233C9;2022-001031;Ordine;;PERKIN ELMER ITALIA S.P.A.;00742090152;Riparazione_ELAN9000_PerkinElmer;Servizi di riparazione e manutenzione di attrezzature da laboratorio;13/10/2022;13/10/2022;13/10/2022;0;0,00;0,00;ANALISI DEGLI ELEMENTI;97425580152;23-AFFIDAMENTO DIRETTO;3.815,65;
ZEC3824EDD;2022-001032;Ordine;;SHIMADZU ITALIA SRL;10191010155;Acquisto PC strumentale Shimadzu;Apparecchiature e atrezzature e forniture informatiche;13/10/2022;13/10/2022;13/10/2022;0;3.500,00;3.500,00;CROMATOGRAFIA;97425580152;23-AFFIDAMENTO DIRETTO;3.500,00;
Z9638260DD;2022-001033;Ordine;;EUROPEAN TECHNOLOGY S.R.L.;00840600191;Pezzi di ricambio per strumentazione European Technology - consuntivo del 02.05.2022 n. BAT 2.911/l - intervento gi� effettuato da European Technology;Servizi di riparazione e manutenzione di attrezzature da laboratorio;17/10/2022;17/10/2022;17/10/2022;0;174,16;174,16;LABORATORIO ANALISI;97425580152;23-AFFIDAMENTO DIRETTO;174,16;
ZB338261D1;2022-001034;Ordine;;EUROPEAN TECHNOLOGY S.R.L.;00840600191;Pezzi di ricambio European Technology per intervento gi� effettuato - secondo consuntivo BAT 2.605/l del 06.05.2022;Servizi di riparazione e manutenzione di attrezzature da laboratorio;17/10/2022;17/10/2022;17/10/2022;0;1.125,36;1.125,36;LABORATORIO ANALISI;97425580152;23-AFFIDAMENTO DIRETTO;1.125,36;
ZCF3826A58;2022-001035;Ordine;;REGENT INTERNATIONAL SRL;01262990581;Regent Ft. 7247/E1 hotels e voli;Servizi di agenzie di viaggio, operatori turistici e Servizi di assistenza turistica - Servizi di supporto al trasporto terrestre, per via d'acqua e aereo;14/10/2022;14/10/2022;14/10/2022;0;4.790,52;4.790,52;"PROGETTI E SERVIZI; LABORATORIO EMISSIONI; NORMAZIONE; LABORATORIO CARTA; LAB. SOSTANZE GRASSE, DERIVATI E TECNOLOGIE OLEARIE; CROMATOGRAFIA";97425580152;23-AFFIDAMENTO DIRETTO;4.790,52;
Z783826A6D;2022-001036;Ordine;;REGENT INTERNATIONAL SRL;01262990581;Regent FT. 7249/E1 Hotels naz.;Servizi di agenzie di viaggio, operatori turistici e Servizi di assistenza turistica - Servizi di supporto al trasporto terrestre, per via d'acqua e aereo;14/10/2022;14/10/2022;14/10/2022;0;465,45;465,45;"PROGETTI E SERVIZI; LABORATORIO ANALISI; CROMATOGRAFIA";97425580152;23-AFFIDAMENTO DIRETTO;465,45;
Z33382C990;2022-001038;Ordine;;PERKIN ELMER ITALIA S.P.A.;00742090152;SostituzioneCondensatore_ICPMS-ELAN9000;Servizi di riparazione e manutenzione di attrezzature da laboratorio;20/10/2022;20/10/2022;20/10/2022;0;212,50;212,50;ANALISI DEGLI ELEMENTI;97425580152;23-AFFIDAMENTO DIRETTO;212,50;
Z55382CECE;2022-001039;Ordine;;SEA MARCONI TECHNOLOGIES S.A.S. DI V.TUMIATTI;00889150017;Analisi olio;Servizi di prove tecniche, analisi, di laboratorio e relativa consulenza;17/10/2022;17/10/2022;17/10/2022;0;0,00;0,00;LAB. PRODOTTI VERNICIANTI;97425580152;23-AFFIDAMENTO DIRETTO;1.998,00;
Z87382D17F;2022-001040;Ordine;;VWR INTERNATIONAL SRL;12864800151;Metilato sodico VWR-Folegatti;Attrezzature da laboratorio, ottiche e di precisione.;17/10/2022;17/10/2022;17/10/2022;0;97,69;97,69;LAB. SOSTANZE GRASSE, DERIVATI E TECNOLOGIE OLEARIE;97425580152;23-AFFIDAMENTO DIRETTO;97,69;
Z3537EAF0A;2022-000926;Contratto;;MALVERN PANALYTICAL SRL;03646620967;Spettrometro a fluorescenza malvern panalytical epsilon sulfur - offerta 22VMQ034 � Q-95339-1 - Lab. Analisi chimico fisiche - SSC;Attrezzature da laboratorio, ottiche e di precisione.;18/10/2022;17/10/2022;31/12/2022;0;0,00;0,00;LABORATORIO ANALISI;97425580152;23-AFFIDAMENTO DIRETTO;38.000,00;
Z17382D69B;2022-001041;Ordine;;CRIOCLIMA SRL;05840640964;consuntivo 157;Servizi di riparazione e manutenzione di attrezzature da laboratorio;18/10/2022;18/10/2022;18/10/2022;0;1.835,12;1.835,12;LAB. PRODOTTI VERNICIANTI;97425580152;23-AFFIDAMENTO DIRETTO;1.835,12;
Z0C38331C4;2022-001045;Ordine;;UNITED PARCEL SERVICE ITALIA SRL;08537690151;Oneri doganali;Servizi di posta e corriere;26/10/2022;26/10/2022;26/10/2022;0;0,00;0,00;LABORATORIO CARTA;97425580152;23-AFFIDAMENTO DIRETTO;7,70;
Z473835D1F;2022-001046;Ordine;;EXACTA + OPTECH LABCENTER S.P.A.;01022690364;exacta no gara;Sostanze chimiche;21/10/2022;21/10/2022;21/10/2022;0;0,00;0,00;Facility Management;97425580152;23-AFFIDAMENTO DIRETTO;1.975,20;
Z6D3836D3F;2022-001047;Ordine;;CAMAR ELETTRONICA S.R.L.;02059800363;Taratura Temp 70 Pt100;Servizi di prove tecniche, analisi, di laboratorio e relativa consulenza;27/10/2022;27/10/2022;27/10/2022;0;120,00;120,00;LAB. PRODOTTI VERNICIANTI;97425580152;23-AFFIDAMENTO DIRETTO;120,00;
Z91383720C;2022-001049;Ordine;;SEGRA '95 SRL (MAIL BOXES);11539210150;Fattura Segra;Servizi di posta e corriere;21/10/2022;21/10/2022;21/10/2022;0;454,29;454,29;Facility Management;97425580152;23-AFFIDAMENTO DIRETTO;454,29;
Z3C38371B0;2022-001050;Ordine;;MERCK LIFE SCIENCE S.R.L.;13209130155;Etere etilico per HPLC 13.10.22;Attrezzature da laboratorio, ottiche e di precisione.;27/10/2022;27/10/2022;27/10/2022;0;1.463,00;1.463,00;LAB. SOSTANZE GRASSE, DERIVATI E TECNOLOGIE OLEARIE;97425580152;23-AFFIDAMENTO DIRETTO;1.463,00;
ZCD3837D51;2022-001052;Ordine;;S.I.A.Q. SAS DI FRANCIOSI ALESSANDRO E C.;02752270963;Rinnovo delle SCIA antincendio sedi SSOG, SSCCP e SSC;Servizi di ricerca e sviluppo e relativi Servizi di consulenza;21/10/2022;21/10/2022;21/10/2022;0;0,00;0,00;SERVIZIO SICUREZZA SALUTE E AMBIENTE;97425580152;23-AFFIDAMENTO DIRETTO;3.500,00;"PRESTING SRL 02725380584; S.I.A.Q. SAS DI FRANCIOSI ALESSANDRO E C. 02752270963"
Z5C383AF42;2022-001053;Ordine;;L.M.P. SRL;05697910585;Analisi In subappalto a L.M.P. per analisi PCB e PCT - offerta n. 044/22/ML;Servizi di prove tecniche, analisi, di laboratorio e relativa consulenza;20/10/2022;20/10/2022;20/10/2022;0;480,00;480,00;LABORATORIO ANALISI;97425580152;23-AFFIDAMENTO DIRETTO;480,00;
Z98383B1B4;2022-001054;Ordine;;GRAFICHE GIARDINI SRL;05941500158;Timbri autoinchiostranti;Macchine e apparecchi, attrezzature e articoli di consumo elettrici, illuminazione;21/10/2022;21/10/2022;21/10/2022;0;128,80;128,80;Facility Management;97425580152;23-AFFIDAMENTO DIRETTO;128,80;
Z73383B284;2022-001055;Ordine;;SIAD S.P.A.;00209070168;SIAD FT OLII E SSC;Prodotti derivati dal petrolio;21/10/2022;21/10/2022;21/10/2022;0;832,55;832,55;"RESPONSABILE AREA SSC; RESPONSABILE AREA SSOG";97425580152;23-AFFIDAMENTO DIRETTO;832,55;
Z5C383F3E4;2022-001056;Ordine;;Fedex Express Italy S.r.l;1273040129;FEDEX FT. 103534516 ONERI DOGANALI;Servizi di posta e corriere;20/10/2022;20/10/2022;20/10/2022;0;245,75;245,75;CROMATOGRAFIA;97425580152;23-AFFIDAMENTO DIRETTO;245,75;
Z45383F589;2022-001057;Ordine;;PHENOMENEX SRL;02691021204;SecurityCup_Phenomenex;Attrezzature da laboratorio, ottiche e di precisione.;21/10/2022;21/10/2022;21/10/2022;0;3.819,70;3.819,70;"LAB. PRODOTTI VERNICIANTI; CROMATOGRAFIA";97425580152;23-AFFIDAMENTO DIRETTO;3.819,70;
6952734998;2022-001058;Ordine;;HIT SRL - SERVIZI PER LA COMUNICAZIONE;11344960155;RevisioneArticoli_ingelse_ottobre2022;Servizi di ricerca e sviluppo e relativi Servizi di consulenza;21/10/2022;21/10/2022;21/10/2022;0;0,00;0,00;RESPONSABILE AREA SSOG;97425580152;23-AFFIDAMENTO DIRETTO;338,00;
Z7C383FC84;2022-001059;Ordine;;RESTEK SRL;03226210155;Acquisto consumabili Restek;Attrezzature da laboratorio, ottiche e di precisione.;21/10/2022;21/10/2022;21/10/2022;0;1.474,04;1.474,04;"LAB. SOSTANZE GRASSE, DERIVATI E TECNOLOGIE OLEARIE; CROMATOGRAFIA";97425580152;23-AFFIDAMENTO DIRETTO;1.474,04;"PHENOMENEX SRL 02691021204; RESTEK SRL 03226210155"
ZA8384066A;2022-001060;Ordine;;METTLER TOLEDO S.P.A.;00718330152;Ricambi TGA DSC;"Attrezzature da laboratorio, ottiche e di precisione.; Servizi di riparazione e manutenzione di attrezzature da laboratorio";21/10/2022;21/10/2022;21/10/2022;0;0,00;0,00;LAB. SICUREZZA INDUSTRIALE;97425580152;23-AFFIDAMENTO DIRETTO;15.594,62;
Z603841D2B;2022-001061;Ordine;;TECNO OFFICE GLOBAL S.R.L.;01641800550;"TONER LEXMARK MS610n
GLOBAL TRASPORTO
";Cancelleria, materiale e attrezzature di consumo per ufficio;21/10/2022;21/10/2022;21/10/2022;0;244,98;244,98;Facility Management;97425580152;23-AFFIDAMENTO DIRETTO;244,98;
ZD03841CF6;2022-001062;Ordine;;EXTRASYNTHESE;;Acido carnosico;Attrezzature da laboratorio, ottiche e di precisione.;31/10/2022;31/10/2022;31/10/2022;0;130,00;130,00;CROMATOGRAFIA;97425580152;23-AFFIDAMENTO DIRETTO;130,00;
ZC63849EA1;2022-001066;Ordine;;KAISER+KRAFT SRL;01627250135;Transpallet - https://www.kaiserkraft.it/dispositivi-di-sollevamento/transpallet/transpallet-evo/con-freno-ruote-sterzanti-in-gomma-piena/p/M7825447/?articleNumber=570055;Apparecchiature e atrezzature e forniture informatiche;24/10/2022;24/10/2022;24/10/2022;0;1.080,00;1.080,00;LABORATORIO EMISSIONI;97425580152;23-AFFIDAMENTO DIRETTO;1.080,00;
Z06384469A;2022-001067;Ordine;;SERVIZI INNOVATIVI NORDOVEST S.R.L.;08955680965;Spedizione buoni carburante ENI per il personale;ALTRE SPESE PER IL PERSONALE;26/10/2022;26/10/2022;26/10/2022;0;0,00;0,00;RISORSE UMANE E ORGANIZZAZIONE;97425580152;23-AFFIDAMENTO DIRETTO;15,00;
Z163852494;2022-001068;Ordine;;GRUPPO C.S.A.  S.P.A.;03231410402;Analisi laboratorio esterne;Servizi di prove tecniche, analisi, di laboratorio e relativa consulenza;27/10/2022;27/10/2022;27/10/2022;0;0,00;0,00;LABORATORIO CARTA;97425580152;23-AFFIDAMENTO DIRETTO;900,00;
Z083852B97;2022-001070;Ordine;;POLITECNICO DI MILANO DIP.ING.CIV.E AMB.LE;80057930150;Analisi esterne;Servizi di prove tecniche, analisi, di laboratorio e relativa consulenza;27/10/2022;27/10/2022;27/10/2022;0;0,00;0,00;LABORATORIO CARTA;97425580152;23-AFFIDAMENTO DIRETTO;1.500,00;
Z7238551F7;2022-001071;Ordine;;STUDIO DAVERIO & FLORIO;13464890154;STUDIO LEGALE DAVERIO;Servizi giuridici;26/10/2022;26/10/2022;26/10/2022;0;0,00;0,00;RISORSE UMANE E ORGANIZZAZIONE;97425580152;23-AFFIDAMENTO DIRETTO;3.294,72;
ZCA384496D;2022-001073;Ordine;;LABVANTAGE SOLUTIONS EUROPE LTDITALIAN BRANCH;06614860960;assistenza personalizzazione LIMS per riorganizzazione aziendale;Pacchetti software e sistemi di informazione;27/10/2022;27/10/2022;27/10/2022;0;0,00;0,00;UFFICIO ANALISI;97425580152;04-PROCEDURA NEGOZIATA SENZA PREVIA PUBBLICAZIONE;5.425,00;
Z993853E15;2022-001074;Ordine;;TRASPORTI ZINGALI SRL;02064240183;Zingali - FT 46_2022;Servizi di posta e corriere;28/10/2022;28/10/2022;28/10/2022;0;37,78;37,78;LABORATORIO ANALISI;97425580152;23-AFFIDAMENTO DIRETTO;37,78;
ZCE37ECE79;2022-001075;Ordine;;ERRECI SRL;05102590154;Manutenzione ordinaria ERRECI;Servizi di riparazione e manutenzione di attrezzature da laboratorio;08/11/2022;08/11/2022;08/11/2022;0;6.070,00;6.070,00;LAB. SOSTANZE GRASSE, DERIVATI E TECNOLOGIE OLEARIE;97425580152;23-AFFIDAMENTO DIRETTO;6.070,00;
Z8F385A44C;2022-001076;Ordine;2022-000884;IMCD ITALIA SPA;03525700153;consuntiv imcd 21 10;Servizi di riparazione e manutenzione di attrezzature da laboratorio;08/11/2022;08/11/2022;08/11/2022;0;0,00;0,00;LAB. PRODOTTI VERNICIANTI;97425580152;23-AFFIDAMENTO DIRETTO;301,75;
Z6E385A630;2022-001077;Ordine;;ETTORE PASQUALI S.R.L.;04892610157;Pasquali consumabili OG3_19_10_22;"Indumenti e calzature ad uso professionale, speciale e accessori; Attrezzature da laboratorio, ottiche e di precisione.";08/11/2022;08/11/2022;08/11/2022;0;332,30;332,30;"Facility Management; LAB. SOSTANZE GRASSE, DERIVATI E TECNOLOGIE OLEARIE";97425580152;23-AFFIDAMENTO DIRETTO;332,30;
ZC5385A811;2022-001078;Ordine;;MERCK LIFE SCIENCE S.R.L.;13209130155;sacche supelco 1 litro cod 30226-U;Attrezzature da laboratorio, ottiche e di precisione.;28/10/2022;28/10/2022;28/10/2022;0;462,00;462,00;LABORATORIO EMISSIONI;97425580152;23-AFFIDAMENTO DIRETTO;462,00;
ZF6385A982;2022-001079;Ordine;;G.S.G. SRL;07367140154;"filtri abbattimento fumi 
codice F40100506010100; descrizione : 
F40100506010100 KG 5
610x610x292 F6
";Attrezzature da laboratorio, ottiche e di precisione.;28/10/2022;28/10/2022;28/10/2022;0;0,00;0,00;LABORATORIO EMISSIONI;97425580152;23-AFFIDAMENTO DIRETTO;2.088,90;
Z0F385B2D2;2022-001080;Ordine;;UNI - ENTE NAZIONALE ITALIANO DI UNIFICAZIONE;80037830157;UNI FT. settembre-ottobre;Servizi di prove tecniche, analisi, di laboratorio e relativa consulenza;28/10/2022;28/10/2022;28/10/2022;0;0,00;0,00;NORMAZIONE;97425580152;23-AFFIDAMENTO DIRETTO;493,75;
ZF23855903;2022-001081;Ordine;;ASSING SPA;06725640582;Consumabili SEM;Attrezzature da laboratorio, ottiche e di precisione.;28/10/2022;28/10/2022;28/10/2022;0;532,55;532,55;LABORATORIO SETA;97425580152;23-AFFIDAMENTO DIRETTO;726,92;
ZF7385FC23;2022-001084;Ordine;;DHL EXPRESS (ITALY) SRL;04209680158;dhl oneri doganali;Servizi di posta e corriere;28/10/2022;28/10/2022;28/10/2022;0;0,00;0,00;LABORATORIO CARTA;97425580152;23-AFFIDAMENTO DIRETTO;15,07;
Z22385FC93;2022-001085;Ordine;;PROOF-ACS GMBH;DE285413072;Materiali di riferimento per MOSH/MOAH;Attrezzature da laboratorio, ottiche e di precisione.;08/11/2022;08/11/2022;08/11/2022;0;0,00;0,00;LAB. SOSTANZE GRASSE, DERIVATI E TECNOLOGIE OLEARIE;97425580152;23-AFFIDAMENTO DIRETTO;1.110,00;
ZCF385FD1F;2022-001086;Ordine;;DHL EXPRESS (ITALY) SRL;04209680158;DHL ONERI DOGNALI;Servizi di posta e corriere;28/10/2022;28/10/2022;28/10/2022;0;0,00;0,00;LABORATORIO CARTA;97425580152;23-AFFIDAMENTO DIRETTO;35,22;
Z43290CDFA;2022-001088;Ordine;;POSTE ITALIANE SPA;97103880585;POSTE ITALIANE;Servizi di posta e corriere;02/11/2022;02/11/2022;02/11/2022;0;149,60;149,60;Facility Management;97425580152;23-AFFIDAMENTO DIRETTO;149,60;
Z943865235;2022-001089;Ordine;;UNITED PARCEL SERVICE ITALIA SRL;08537690151;ups servizio di trasporto e accessori;Servizi di posta e corriere;02/11/2022;02/11/2022;02/11/2022;0;0,00;0,00;Facility Management;97425580152;23-AFFIDAMENTO DIRETTO;7,70;
Z4D3865795;2022-001090;Ordine;;PACKAGING MEETING SRL CONSULENZA E FORMAZIONE;12464120158;Iscrizione convegno;Servizi di istruzione e formazione;02/11/2022;02/11/2022;02/11/2022;0;390,00;390,00;RISORSE UMANE E ORGANIZZAZIONE;97425580152;23-AFFIDAMENTO DIRETTO;390,00;
Z6E386D236;2022-001093;Ordine;;PARCAM SRL;05822580964;Prenotazione sala consiglio in CCIAA;Servizi commerciali vari ed altri servizi;07/11/2022;07/11/2022;07/11/2022;0;1.250,00;1.250,00;NORMAZIONE;97425580152;23-AFFIDAMENTO DIRETTO;1.250,00;
Z9F3870C85;2022-001094;Ordine;;METTLER TOLEDO S.P.A.;00718330152;Crogioli per analisi DSC -;Attrezzature da laboratorio, ottiche e di precisione.;07/11/2022;07/11/2022;07/11/2022;0;4.502,00;4.502,00;LAB. SICUREZZA INDUSTRIALE;97425580152;23-AFFIDAMENTO DIRETTO;4.502,00;
ZF43865E5B;2022-001095;Ordine;;CUCCHI SERGIO SRL;02353410968;materiale  di consumo;Servizi di riparazione e manutenzione di attrezzature da laboratorio;04/11/2022;04/11/2022;04/11/2022;0;0,00;0,00;LABORATORIO EMISSIONI;97425580152;23-AFFIDAMENTO DIRETTO;1.060,00;
Z323867D68;2022-001096;Ordine;;CAMINART SRL;04887750968;legna di faggio;Attrezzature da laboratorio, ottiche e di precisione.;04/11/2022;04/11/2022;04/11/2022;0;320,00;320,00;LABORATORIO EMISSIONI;97425580152;23-AFFIDAMENTO DIRETTO;320,00;
Z1D38446EB;2022-001097;Ordine;;DE-LAB SRLSOCIETA' BENEFIT;10351340962;consulenza triennale integrazione teorica e operativa del tool Sustainability Navigator - Divisione Progetti;Servizi di ricerca e sviluppo e relativi Servizi di consulenza;04/11/2022;04/11/2022;04/11/2022;0;2.900,00;2.900,00;PROGETTI E SERVIZI;97425580152;23-AFFIDAMENTO DIRETTO;444,46;
Z1D38446EB;2022-001099;Ordine;;DE-LAB SRLSOCIETA' BENEFIT;10351340962;consulenza triennale integrazione teorica e operativa del tool Sustainability Navigator - Divisione Progetti;Servizi di ricerca e sviluppo e relativi Servizi di consulenza;04/11/2022;04/11/2022;04/11/2022;0;0,00;0,00;PROGETTI E SERVIZI;97425580152;23-AFFIDAMENTO DIRETTO;2.666,66;
Z1D38446EB;2022-001100;Ordine;;DE-LAB SRLSOCIETA' BENEFIT;10351340962;consulenza triennale integrazione teorica e operativa del tool Sustainability Navigator - Divisione Progetti;Servizi di ricerca e sviluppo e relativi Servizi di consulenza;04/11/2022;04/11/2022;04/11/2022;0;0,00;0,00;PROGETTI E SERVIZI;97425580152;23-AFFIDAMENTO DIRETTO;2.222,22;
8665765F7D;2022-001101;Ordine;;ETTORE PASQUALI S.R.L.;04892610157;vetreria ettore pasquali;Attrezzature da laboratorio, ottiche e di precisione.;08/11/2022;08/11/2022;08/11/2022;0;676,16;676,16;Facility Management;97425580152;23-AFFIDAMENTO DIRETTO;700,72;
Z43290CDFA;2022-001102;Ordine;;POSTE ITALIANE SPA;97103880585;FT POSTE ITALIANE;Servizi di posta e corriere;08/11/2022;08/11/2022;08/11/2022;0;314,13;314,13;Facility Management;97425580152;23-AFFIDAMENTO DIRETTO;314,13;
Z9038A17DF;2022-001103;Ordine;;DADO LAB SRL;08356080963;Elettrovalvola per permapure e filtri HP1 Dadolab;Servizi di riparazione e manutenzione di attrezzature da laboratorio;17/11/2022;17/11/2022;17/11/2022;0;340,00;340,00;LABORATORIO EMISSIONI;97425580152;23-AFFIDAMENTO DIRETTO;340,00;
866646512A;2022-001104;Ordine;;ENEL ENERGIA S.P.A.;06655971007;Enel Energia 2022;Servizi pubblici, acqua gas e luce;08/11/2022;08/11/2022;08/11/2022;0;390.749,73;374.577,91;Facility Management;97425580152;26-AFFIDAMENTO IN ADESIONE AD ACCORDO QUADRO/CONVENZIONE CONSIP;763.000,00;
ZD3387BB55;2022-001106;Ordine;;BARBERO PIETRO S.P.A.;02073350015;Bancali per Rifiuti;Macchine e apparecchi, attrezzature e articoli di consumo elettrici, illuminazione;08/11/2022;08/11/2022;08/11/2022;0;756,48;756,48;Facility Management;97425580152;23-AFFIDAMENTO DIRETTO;756,60;
Z52388102E;2022-001107;Ordine;;CONVERGE SPA;04472901000;TONER PER UFFICIO ANALISI CARTA;Cancelleria, materiale e attrezzature di consumo per ufficio;14/11/2022;14/11/2022;14/11/2022;0;0,00;0,00;Facility Management;97425580152;23-AFFIDAMENTO DIRETTO;641,00;
Z923882F28;2022-001108;Ordine;;MITAMBIENTE SRL;06317870969;Mitambiente - Fattura 750_2022;Attrezzature da laboratorio, ottiche e di precisione.;11/11/2022;11/11/2022;11/11/2022;0;80,00;80,00;LABORATORIO ANALISI;97425580152;23-AFFIDAMENTO DIRETTO;80,00;
Z5B3883005;2022-001109;Ordine;;DSV SPA;00891230153;DIESEL FUEL SAMPLES LAB ID IQT3 FATT.  IT812052986;Servizi di posta e corriere;11/11/2022;11/11/2022;11/11/2022;0;88,11;88,11;LABORATORIO ANALISI;97425580152;23-AFFIDAMENTO DIRETTO;88,11;
Z613882DB7;2022-001110;Ordine;;GRUPPO ISPAC SOCIETA' COOPERATIVA;07915640960;certificazione rfi;Servizi di ricerca e sviluppo e relativi Servizi di consulenza;14/11/2022;14/11/2022;14/11/2022;0;0,00;0,00;LAB. PRODOTTI VERNICIANTI;97425580152;23-AFFIDAMENTO DIRETTO;400,00;
Z563882FA7;2022-001111;Ordine;;SAS INSTITUTE SRL;08517850155;Licenze JMP;Pacchetti software e sistemi di informazione;14/11/2022;14/11/2022;14/11/2022;0;0,00;0,00;LAB. PRODOTTI VERNICIANTI;97425580152;23-AFFIDAMENTO DIRETTO;433,50;
Z563882FA7;2022-001112;Ordine;;SAS INSTITUTE SRL;08517850155;Licenze JMP;Pacchetti software e sistemi di informazione;14/11/2022;14/11/2022;14/11/2022;0;0,00;0,00;LAB. PRODOTTI VERNICIANTI;97425580152;23-AFFIDAMENTO DIRETTO;433,50;
ZC438837BB;2022-001113;Ordine;;Aqualab Supplies S.L;;Cellulose Thimbles_ASE;Attrezzature da laboratorio, ottiche e di precisione.;14/11/2022;14/11/2022;14/11/2022;0;0,00;0,00;LAB. COSMETICA E DETERGENZA;97425580152;23-AFFIDAMENTO DIRETTO;384,00;
ZF03883AC4;2022-001115;Ordine;;NG LABTEC SRL;03256110168;Manutenzion Hunterlab;Servizi di riparazione e manutenzione di attrezzature da laboratorio;14/11/2022;14/11/2022;14/11/2022;0;0,00;0,00;LAB. PRODOTTI VERNICIANTI;97425580152;23-AFFIDAMENTO DIRETTO;2.265,00;
ZC338856D6;2022-001116;Ordine;;TNT GLOBAL EXPRESS SPA;01273040129;TNT;Servizi di posta e corriere;14/11/2022;14/11/2022;14/11/2022;0;8,49;7,39;UFFICIO ANALISI;97425580152;23-AFFIDAMENTO DIRETTO;7,39;
ZBD38A1B2D;2022-001118;Ordine;;SIAD S.P.A.;00209070168;Siad Noleggio Combustibili;Prodotti derivati dal petrolio;17/11/2022;17/11/2022;17/11/2022;0;668,58;668,58;RESPONSABILE AREA SSC;97425580152;23-AFFIDAMENTO DIRETTO;668,54;
ZCF38837C1;2022-001119;Ordine;;G.S.G. SRL;07367140154;SPOSTAMENTO ARREDI E CAPPE DA SETA A CARTA;altri Servizi di comunita', sociali e personali;10/11/2022;10/11/2022;10/11/2022;0;0,00;0,00;Facility Management;97425580152;23-AFFIDAMENTO DIRETTO;19.998,00;
Z773887D2E;2022-001120;Ordine;;GRASSI UFFICIO SAS;01279740136;cancelleria;Cancelleria, materiale e attrezzature di consumo per ufficio;10/11/2022;10/11/2022;10/11/2022;0;0,00;0,00;Facility Management;97425580152;23-AFFIDAMENTO DIRETTO;344,64;"GRASSI UFFICIO SAS 01279740136; TECNO OFFICE GLOBAL S.R.L. 01641800550"
ZAE3888233;2022-001122;Ordine;;WALDNER SRL;00799220157;FORNITURA BANCO DA LABORATORIO;Mobili da ufficio, arredi, elettrodomestici;10/11/2022;10/11/2022;10/11/2022;0;1.066,00;1.066,00;CROMATOGRAFIA;97425580152;23-AFFIDAMENTO DIRETTO;1.066,00;
Z5A3888412;2022-001123;Ordine;;G.S.G. SRL;07367140154;SPOSTAMENTO E AGGIORNAMENTO ASPIRAZIONE;altri Servizi di comunita', sociali e personali;10/11/2022;10/11/2022;10/11/2022;0;0,00;0,00;Facility Management;97425580152;23-AFFIDAMENTO DIRETTO;2.173,44;
Z573888539;2022-001124;Ordine;;MERCK LIFE SCIENCE S.R.L.;13209130155;Sodio Metossido 164992-MILANI;Attrezzature da laboratorio, ottiche e di precisione.;14/11/2022;14/11/2022;14/11/2022;0;97,40;97,40;LAB. SOSTANZE GRASSE, DERIVATI E TECNOLOGIE OLEARIE;97425580152;23-AFFIDAMENTO DIRETTO;97,40;
Z6A3888C4E;2022-001125;Ordine;;MARCELLO FIDALEO;FDLMCL75A06D708V;consulenza jmp;Servizi di ricerca e sviluppo e relativi Servizi di consulenza;14/11/2022;14/11/2022;14/11/2022;0;0,00;0,00;LAB. PRODOTTI VERNICIANTI;97425580152;23-AFFIDAMENTO DIRETTO;3.000,00;
Z0E388B33D;2022-001126;Ordine;;O.N.A.O.O. ORGANIZZAZIONE NAZIONALE ASSAGGIATORI OLIO DI OLIVA;91003470084;CORSO panel 2023;Servizi di istruzione e formazione;14/11/2022;14/11/2022;14/11/2022;0;0,00;0,00;RISORSE UMANE E ORGANIZZAZIONE;97425580152;23-AFFIDAMENTO DIRETTO;8.000,00;"O.N.A.O.O. ORGANIZZAZIONE NAZIONALE ASSAGGIATORI OLIO DI OLI 91003470084; IRVEA / Federquality 02738420344; ASSOCIAZIONE INTERNAZIONALE RISTORANTI DELL'OLIO ASSOCIAZION 94224980485"
8349380e54;2022-001127;Ordine;;EXACTA + OPTECH LABCENTER S.P.A.;01022690364;REAGENTI IN GARA;Sostanze chimiche;11/11/2022;11/11/2022;11/11/2022;0;0,00;0,00;Facility Management;97425580152;23-AFFIDAMENTO DIRETTO;1.209,28;
Z8F3893AFF;2022-001128;Ordine;;AGILENT TECHNOLOGIES ITALIA SPA;12785290151;SPOSTAMENTO CARY5000 DA AREA SETA A SSOG;altri Servizi di comunita', sociali e personali;14/11/2022;14/11/2022;14/11/2022;0;0,00;0,00;Facility Management;97425580152;23-AFFIDAMENTO DIRETTO;6.304,26;
ZA138941CF;2022-001129;Ordine;;BYK-GARDNER GMBH;;manutenzione byk;Servizi di riparazione e manutenzione di attrezzature da laboratorio;15/11/2022;15/11/2022;15/11/2022;0;0,00;0,00;LAB. PRODOTTI VERNICIANTI;97425580152;23-AFFIDAMENTO DIRETTO;913,00;
Z983893885;2022-001131;Ordine;;THERMO FISHER SCIENTIFIC S.P.A.;07817950152;SPOSTAMENTO NICOLET IN 10;altri Servizi di comunita', sociali e personali;14/11/2022;14/11/2022;14/11/2022;0;0,00;0,00;Facility Management;97425580152;23-AFFIDAMENTO DIRETTO;3.137,50;
ZE33893825;2022-001132;Ordine;;CESARE GALDABINI SPA;00187500129;Taratura ACCREDIA barometro LSI ELO310 presso Galdabini come da offerta 35952 Rev 0 del 09.11.2022;Servizi di riparazione e manutenzione di attrezzature da laboratorio;15/11/2022;15/11/2022;15/11/2022;0;0,00;0,00;LABORATORIO ANALISI;97425580152;23-AFFIDAMENTO DIRETTO;400,00;
ZCB2A1727E;2022-001133;Ordine;;FORM@AMBIENTESTUDIOSTUDIO INGEGNERIA ASSOCIATO;01544220559;CONSULENZA ADR;Servizi di ricerca e sviluppo e relativi Servizi di consulenza;15/11/2022;15/11/2022;15/11/2022;0;1.969,80;1.916,72;SERVIZIO SICUREZZA SALUTE E AMBIENTE;97425580152;23-AFFIDAMENTO DIRETTO;1.916,72;
946148151E;2022-001005;Contratto;;ABETTERPLACE SRL SOCIETA' BENEFIT;12143060965;realizzazione di un percorso di formazione e sviluppo a supporto della riorganizzazione - A BETTER PLACE;Servizi commerciali vari ed altri servizi;15/11/2022;15/11/2022;31/12/2022;0;0,00;0,00;RISORSE UMANE E ORGANIZZAZIONE;97425580152;23-AFFIDAMENTO DIRETTO;65.000,00;
ZBE38969FB;2022-001134;Ordine;;COLAVER S.R.L.;05099780156;"Piastre Petri in PS  60 con alette
ventilaz. pz 1000
Codice: 12KL0368";Attrezzature da laboratorio, ottiche e di precisione.;15/11/2022;15/11/2022;15/11/2022;0;275,00;275,00;LABORATORIO SETA;97425580152;23-AFFIDAMENTO DIRETTO;275,00;
ZA538970F8;2022-001135;Ordine;;LISBOA FEIRAS CONGRESSOS E EVENTOS;;Lisboa Invoice FAL 2022/288;Servizi di istruzione e formazione;15/11/2022;15/11/2022;15/11/2022;0;0,00;0,00;RISORSE UMANE E ORGANIZZAZIONE;97425580152;23-AFFIDAMENTO DIRETTO;295,00;
Z7E3897720;2022-001136;Ordine;;A.S.I.T. INSTRUMENTS SRL;11578520014;mass flow certificato;Attrezzature da laboratorio, ottiche e di precisione.;18/11/2022;18/11/2022;18/11/2022;0;0,00;0,00;LAB. LUBRIFICANTI;97425580152;23-AFFIDAMENTO DIRETTO;2.340,00;
ZEF3897053;2022-001137;Ordine;;ASTMINTERNATIONAL;US231352024;ASTM FT. 8662443;Servizi di prove tecniche, analisi, di laboratorio e relativa consulenza;15/11/2022;15/11/2022;15/11/2022;0;0,00;0,00;NORMAZIONE;97425580152;23-AFFIDAMENTO DIRETTO;61,57;
Z4D38970C8;2022-001138;Ordine;;ISO - INTERNATIONAL ORGANIZATIONFOR STANDARDIZATION;CH105816788;ISO Invoice 00549479;Servizi di prove tecniche, analisi, di laboratorio e relativa consulenza;15/11/2022;15/11/2022;15/11/2022;0;0,00;0,00;NORMAZIONE;97425580152;23-AFFIDAMENTO DIRETTO;212,52;
ZA6389909D;2022-001139;Ordine;;PERKIN ELMER ITALIA S.P.A.;00742090152;SPOSTAMENTO LAMBDA 950;altri Servizi di comunita', sociali e personali;15/11/2022;15/11/2022;15/11/2022;0;0,00;0,00;Facility Management;97425580152;23-AFFIDAMENTO DIRETTO;2.124,00;
ZE3389983B;2022-001142;Ordine;;FORMEL SRL;01784630814;corso FVOE;ALTRE SPESE PER IL PERSONALE;16/11/2022;16/11/2022;16/11/2022;0;0,00;0,00;RISORSE UMANE E ORGANIZZAZIONE;97425580152;23-AFFIDAMENTO DIRETTO;340,00;
;2022-001144;Ordine;;L.M.P. SRL;05697910585;"Analisi in subappalto a L.M.P. - analisi PCB e PCT metodo UNI EN 12766-1-2-3 - n 12 campioni - come da offerta 
n 044/22/ML";Servizi di prove tecniche, analisi, di laboratorio e relativa consulenza;17/11/2022;17/11/2022;17/11/2022;0;0,00;0,00;LABORATORIO ANALISI;97425580152;23-AFFIDAMENTO DIRETTO;720,00;
ZD4389BF54;2022-001145;Ordine;;CONVERGE SPA;04472901000;TONER UFF.ANALISI SSOG;Cancelleria, materiale e attrezzature di consumo per ufficio;18/11/2022;18/11/2022;18/11/2022;0;0,00;0,00;Facility Management;97425580152;23-AFFIDAMENTO DIRETTO;250,00;
Z6F2ECFEEF;2022-001147;Ordine;;IL SOLE 24 ORE S.P.A.;00777910159;smart 24 appalti;Pacchetti software e sistemi di informazione;17/11/2022;17/11/2022;17/11/2022;0;800,00;134,00;ACQUISTI;97425580152;23-AFFIDAMENTO DIRETTO;134,00;
Z6F2ECFEEF;2022-001148;Ordine;;IL SOLE 24 ORE S.P.A.;00777910159;smart 24 appalti;Pacchetti software e sistemi di informazione;17/11/2022;17/11/2022;17/11/2022;0;800,00;666,00;ACQUISTI;97425580152;23-AFFIDAMENTO DIRETTO;666,00;
ZBF38A4EB3;2022-001150;Ordine;;REGENT INTERNATIONAL SRL;01262990581;REGENT FT. 8252/E1 hotels e voli;Servizi di agenzie di viaggio, operatori turistici e Servizi di assistenza turistica - Servizi di supporto al trasporto terrestre, per via d'acqua e aereo;18/11/2022;18/11/2022;18/11/2022;0;1.039,13;1.378,90;"NORMAZIONE; LABORATORIO CARTA; LABORATORIO SETA";97425580152;23-AFFIDAMENTO DIRETTO;1.378,90;
ZE038A4EC5;2022-001151;Ordine;;REGENT INTERNATIONAL SRL;01262990581;REGENT FT.8254/E1 Hotel naz.;Servizi di agenzie di viaggio, operatori turistici e Servizi di assistenza turistica - Servizi di supporto al trasporto terrestre, per via d'acqua e aereo;18/11/2022;18/11/2022;18/11/2022;0;516,00;516,00;LAB. SOSTANZE GRASSE, DERIVATI E TECNOLOGIE OLEARIE;97425580152;23-AFFIDAMENTO DIRETTO;516,00;
ZCF38A7459;2022-001153;Ordine;;UNI - ENTE NAZIONALE ITALIANO DI UNIFICAZIONE;80037830157;norma prEN 17656:2021 Stationary source emissions - Requirements on proficiency testing schemes for emission measurements;Servizi di prove tecniche, analisi, di laboratorio e relativa consulenza;21/11/2022;21/11/2022;21/11/2022;0;0,00;0,00;LABORATORIO EMISSIONI;97425580152;23-AFFIDAMENTO DIRETTO;65,34;
Z4738A0141;2022-001154;Ordine;;WATERS SPA;04742591003;SPOSTAMENTO DSC Q200 e TGA Q500;altri Servizi di comunita', sociali e personali;21/11/2022;21/11/2022;21/11/2022;0;0,00;0,00;Facility Management;97425580152;23-AFFIDAMENTO DIRETTO;6.673,50;
Z2838A8A02;2022-001155;Ordine;;PHENOMENEX SRL;02691021204;"URGENTE
Phenomenex-dr Milani";Attrezzature da laboratorio, ottiche e di precisione.;24/11/2022;24/11/2022;24/11/2022;0;856,06;856,06;LAB. SOSTANZE GRASSE, DERIVATI E TECNOLOGIE OLEARIE;97425580152;23-AFFIDAMENTO DIRETTO;856,07;
Z6238A8FD6;2022-001156;Ordine;;EUROPEAN TECHNOLOGY S.R.L.;00840600191;manutenzione straordinaria viscosimetro;Servizi di riparazione e manutenzione di attrezzature da laboratorio;24/11/2022;24/11/2022;24/11/2022;0;171,67;171,67;LAB. LUBRIFICANTI;97425580152;23-AFFIDAMENTO DIRETTO;171,67;
ZEB38A994F;2022-001157;Ordine;;FRAREG S.R.L.;11157810158;corsi sicurezza e basso rischio borsista - 2 corsi 25� cad. Frareg;ALTRE SPESE PER IL PERSONALE;21/11/2022;21/11/2022;21/11/2022;0;0,00;0,00;RISORSE UMANE E ORGANIZZAZIONE;97425580152;23-AFFIDAMENTO DIRETTO;50,00;
ZB138A9476;2022-001158;Ordine;;VWR INTERNATIONAL SRL;12864800151;Membrane per dialisi proteine-Folegatti;Attrezzature da laboratorio, ottiche e di precisione.;24/11/2022;24/11/2022;24/11/2022;0;0,00;0,00;LAB. SOSTANZE GRASSE, DERIVATI E TECNOLOGIE OLEARIE;97425580152;23-AFFIDAMENTO DIRETTO;337,00;
Z2738AAC0E;2022-001159;Ordine;;MICROCONTROL N.T. SRL;11714560155;Consumabili preparative;Attrezzature da laboratorio, ottiche e di precisione.;24/11/2022;24/11/2022;24/11/2022;0;0,00;0,00;LAB. PRODOTTI VERNICIANTI;97425580152;23-AFFIDAMENTO DIRETTO;666,00;
;2022-001160;Ordine;;ETTORE PASQUALI S.R.L.;04892610157;PASQUALI riparazione centrifuga Folegatti;Servizi di riparazione e manutenzione di attrezzature da laboratorio;24/11/2022;24/11/2022;24/11/2022;0;0,00;0,00;LAB. SOSTANZE GRASSE, DERIVATI E TECNOLOGIE OLEARIE;97425580152;23-AFFIDAMENTO DIRETTO;550,00;
Z7D2F022C5;2022-001161;Ordine;;ASSING SPA;06725640582;MANUTENZIONE SEM NOV.2022-DIC 2023;Servizi di riparazione e manutenzione di attrezzature da laboratorio;22/11/2022;22/11/2022;22/11/2022;0;11.490,00;1.915,00;LABORATORIO SETA;97425580152;23-AFFIDAMENTO DIRETTO;1.915,00;
Z7D2F022C5;2022-001162;Ordine;;ASSING SPA;06725640582;MANUTENZIONE SEM NOV.2022-DIC 2023;Servizi di riparazione e manutenzione di attrezzature da laboratorio;22/11/2022;22/11/2022;22/11/2022;0;11.490,00;9.575,00;LABORATORIO SETA;97425580152;23-AFFIDAMENTO DIRETTO;9.575,00;
Z5438AE83A;2022-001163;Ordine;;B-45 une soci�t� du groupe BAC - SARL;;"Meeting Parigi - Giornata di studio (Giugno 2022) ELEGIR E BUSSINI
";Servizi di ricerca e sviluppo e relativi Servizi di consulenza;22/11/2022;22/11/2022;22/11/2022;0;0,00;0,00;LABORATORIO SETA;97425580152;23-AFFIDAMENTO DIRETTO;500,00;
Z4838B045E;2022-001164;Ordine;;C2 SRL;01121130197;etichette per la stampa dei dati dei campioni da parte degli uffici analisi;Cancelleria, materiale e attrezzature di consumo per ufficio;24/11/2022;24/11/2022;24/11/2022;0;0,00;0,00;Facility Management;97425580152;23-AFFIDAMENTO DIRETTO;474,00;
;2022-001165;Ordine;;LYRECO ITALIA S.P.A.;11582010150;Cancelleria;Cancelleria, materiale e attrezzature di consumo per ufficio;22/11/2022;22/11/2022;22/11/2022;0;0,00;0,00;Facility Management;97425580152;23-AFFIDAMENTO DIRETTO;56,90;
ZD138B43C4;2022-001166;Ordine;;NUCCICAR S.R.L.;06017640969;cambio gomme;Servizi di riparazione, manutenzione e affini di veicoli e attrezzature connesse;22/11/2022;22/11/2022;22/11/2022;0;0,00;0,00;LABORATORIO EMISSIONI;97425580152;23-AFFIDAMENTO DIRETTO;52,00;
Z7138B4558;2022-001167;Ordine;;DSV SPA;00891230153;spese doganali;Servizi di posta e corriere;22/11/2022;22/11/2022;22/11/2022;0;639,75;639,75;LABORATORIO ANALISI;97425580152;23-AFFIDAMENTO DIRETTO;639,75;
Z1138B5C7E;2022-001168;Ordine;;VWR INTERNATIONAL SRL;12864800151;Colonna Lichrospher RP18;Attrezzature da laboratorio, ottiche e di precisione.;23/11/2022;23/11/2022;23/11/2022;0;0,00;0,00;CROMATOGRAFIA;97425580152;23-AFFIDAMENTO DIRETTO;672,00;
ZF51ECDDED;2022-001169;Ordine;;CONVERGE SPA;04472901000;NOLEGGIO MULTIFUNZIONE SAMSUNG;Apparecchiature e atrezzature e forniture informatiche;23/11/2022;23/11/2022;23/11/2022;0;143,68;143,68;Facility Management;97425580152;23-AFFIDAMENTO DIRETTO;143,68;
ZD238B8C97;2022-001170;Ordine;;PHENOMENEX SRL;02691021204;Colonne_LCMS_Phenomemnex;Attrezzature da laboratorio, ottiche e di precisione.;23/11/2022;23/11/2022;23/11/2022;0;2.202,46;2.202,46;CROMATOGRAFIA;97425580152;23-AFFIDAMENTO DIRETTO;3.852,06;
ZC338B9D23;2022-001171;Ordine;;FISHER SCIENTIFIC SAS;08948430965;ACQUA LC MS CHROMASOLV  HONEYWELL;"Sostanze chimiche; Attrezzature da laboratorio, ottiche e di precisione.";23/11/2022;23/11/2022;23/11/2022;0;1.754,48;1.754,48;Facility Management;97425580152;23-AFFIDAMENTO DIRETTO;1.754,48;
Z1238BEEDA;2022-001174;Ordine;;Afnor Group;;norma afnor M07-023;Servizi di prove tecniche, analisi, di laboratorio e relativa consulenza;29/11/2022;29/11/2022;29/11/2022;0;0,00;0,00;LAB. LUBRIFICANTI;97425580152;23-AFFIDAMENTO DIRETTO;48,74;
Z2A38BEF70;2022-001175;Ordine;;SAT SERVICE AIR TEAM;03650950169;compressore fna mercury 4-10;Apparecchiature e atrezzature e forniture informatiche;24/11/2022;24/11/2022;24/11/2022;0;0,00;0,00;Facility Management;97425580152;23-AFFIDAMENTO DIRETTO;3.423,00;
Z5938BF152;2022-001176;Ordine;;ETTORE PASQUALI S.R.L.;04892610157;rip. bagnomaria WB-S4 DDT8913;Servizi di riparazione e manutenzione di attrezzature da laboratorio;29/11/2022;29/11/2022;29/11/2022;0;0,00;0,00;LAB. SOSTANZE GRASSE, DERIVATI E TECNOLOGIE OLEARIE;97425580152;23-AFFIDAMENTO DIRETTO;260,00;
Z0838BF7EC;2022-001177;Ordine;;BUCHI ITALIA SRL;10607700159;Riparazione Distillatore K-360_FOLEGATTI;Servizi di riparazione e manutenzione di attrezzature da laboratorio;29/11/2022;29/11/2022;29/11/2022;0;0,00;0,00;LAB. SOSTANZE GRASSE, DERIVATI E TECNOLOGIE OLEARIE;97425580152;23-AFFIDAMENTO DIRETTO;612,50;
ZF538BFBFE;2022-001178;Ordine;;A.S.I.T. INSTRUMENTS SRL;11578520014;"certificato di taratura per micromanometro DPI 740
Campo di misura: da 0 a 2000 mmH2O relativi";Servizi di prove tecniche, analisi, di laboratorio e relativa consulenza;29/11/2022;29/11/2022;29/11/2022;0;0,00;0,00;LAB. LUBRIFICANTI;97425580152;23-AFFIDAMENTO DIRETTO;150,00;
Z9A38C06C3;2022-001179;Ordine;;QUALILAB s.r.l.;03240460984;PROVE RETRORIFLESSIONE;Servizi di prove tecniche, analisi, di laboratorio e relativa consulenza;29/11/2022;29/11/2022;29/11/2022;0;0,00;0,00;LAB. PRODOTTI VERNICIANTI;97425580152;23-AFFIDAMENTO DIRETTO;500,00;
Z1D38C0E40;2022-001181;Ordine;;COLAVER S.R.L.;05099780156;vetro custom;Attrezzature da laboratorio, ottiche e di precisione.;29/11/2022;29/11/2022;29/11/2022;0;0,00;0,00;LAB. PRODOTTI VERNICIANTI;97425580152;23-AFFIDAMENTO DIRETTO;380,00;
ZD538C47B0;2022-001182;Ordine;;MEETING PROJECT SRL;02141810131;Noleggio soundbar;Apparecchiature e atrezzature e forniture informatiche;25/11/2022;25/11/2022;25/11/2022;0;0,00;0,00;DIREZIONE GENERALE;97425580152;23-AFFIDAMENTO DIRETTO;100,00;
Z7438C6378;2022-001183;Ordine;;LINKEDIN IRELAND;;Pacchetto abbonamento Linkedin;Servizi di assunzione, di fornitura di personale, compreso personale temporaneo, Servizi di gestione del personale;25/11/2022;25/11/2022;25/11/2022;0;0,00;0,00;RISORSE UMANE E ORGANIZZAZIONE;97425580152;23-AFFIDAMENTO DIRETTO;750,00;
Z0D38C661A;2022-001184;Ordine;;MANUTAN ITALIA SPA;09816660154;acquisti vari manutan;Macchine e apparecchi, attrezzature e articoli di consumo elettrici, illuminazione;25/11/2022;25/11/2022;25/11/2022;0;0,00;0,00;Facility Management;97425580152;23-AFFIDAMENTO DIRETTO;438,55;
Z6C38C9A2E;2022-001185;Ordine;;MONINI S.P.A.;02625300542;olio bios - 750 ml;Gioielli, medaglie articoli affini, regali premi;28/11/2022;28/11/2022;28/11/2022;0;0,00;0,00;DIREZIONE GENERALE;97425580152;23-AFFIDAMENTO DIRETTO;959,10;
ZA038C8BC3;2022-001186;Ordine;;ELLEDI' SRL;06607020960;Convegno per imballaggi compostabili;Servizi di istruzione e formazione;29/11/2022;29/11/2022;29/11/2022;0;200,00;200,00;RISORSE UMANE E ORGANIZZAZIONE;97425580152;23-AFFIDAMENTO DIRETTO;250,00;
Z5F38D27C9;2022-001189;Ordine;;SEGRA '95 SRL (MAIL BOXES);11539210150;FT Segra;Servizi di posta e corriere;29/11/2022;29/11/2022;29/11/2022;0;277,54;277,54;Facility Management;97425580152;23-AFFIDAMENTO DIRETTO;277,54;
Z4938D28B8;2022-001190;Ordine;;ERREBIAN S.P.A.;08397890586;Pile 1/2 Torcia;Macchine e apparecchi, attrezzature e articoli di consumo elettrici, illuminazione;29/11/2022;29/11/2022;29/11/2022;0;0,00;0,00;Facility Management;97425580152;23-AFFIDAMENTO DIRETTO;55,80;
Z8B38D32AA;2022-001191;Ordine;;MADATEC SRL;05348900969;Taratura esterna cuvette UV 2022-Folegatti;Servizi di prove tecniche, analisi, di laboratorio e relativa consulenza;02/12/2022;02/12/2022;02/12/2022;0;0,00;0,00;LAB. SOSTANZE GRASSE, DERIVATI E TECNOLOGIE OLEARIE;97425580152;23-AFFIDAMENTO DIRETTO;624,00;
ZC338D3503;2022-001192;Ordine;;MERCK LIFE SCIENCE S.R.L.;13209130155;cloruro rame;Attrezzature da laboratorio, ottiche e di precisione.;02/12/2022;02/12/2022;02/12/2022;0;0,00;0,00;LAB. PRODOTTI VERNICIANTI;97425580152;23-AFFIDAMENTO DIRETTO;301,00;
Z7238D7576;2022-001193;Ordine;;ERREBIAN S.P.A.;08397890586;GRAFFATRICE PER LEGNO;Cancelleria, materiale e attrezzature di consumo per ufficio;30/11/2022;30/11/2022;30/11/2022;0;0,00;0,00;Facility Management;97425580152;23-AFFIDAMENTO DIRETTO;115,00;
Z43290CDFA;2022-001194;Ordine;;POSTE ITALIANE SPA;97103880585;POSTE FT;Servizi di posta e corriere;30/11/2022;30/11/2022;30/11/2022;0;139,50;139,50;Facility Management;97425580152;23-AFFIDAMENTO DIRETTO;139,50;
Z0238D73B5;2022-001195;Ordine;;RS COMPONENTS S.P.A.;10578740150;filtro karcher;Servizi di riparazione e manutenzione di attrezzature da laboratorio;02/12/2022;02/12/2022;02/12/2022;0;0,00;0,00;LAB. PRODOTTI VERNICIANTI;97425580152;23-AFFIDAMENTO DIRETTO;137,00;
Z5238D73B3;2022-001196;Ordine;;Ruggeri snc di Lorenzo e Andrea;08180230966;Corso Carrelisti (M.Pasquini);Servizi di istruzione e formazione;30/11/2022;30/11/2022;30/11/2022;0;0,00;0,00;RISORSE UMANE E ORGANIZZAZIONE;97425580152;23-AFFIDAMENTO DIRETTO;220,00;
ZC638D7D65;2022-001197;Ordine;;EUROPEAN TECHNOLOGY S.R.L.;00840600191;std mcrt + densit�;Attrezzature da laboratorio, ottiche e di precisione.;02/12/2022;02/12/2022;02/12/2022;0;0,00;0,00;LAB. LUBRIFICANTI;97425580152;23-AFFIDAMENTO DIRETTO;649,94;
ZEF38D809A;2022-001198;Ordine;;FKV S.R.L.;01758800161;Viscosimetro - Riparazione scheda;Servizi di riparazione e manutenzione di attrezzature da laboratorio;30/11/2022;30/11/2022;30/11/2022;0;0,00;0,00;LABORATORIO SETA;97425580152;23-AFFIDAMENTO DIRETTO;883,00;
Z8D38D8590;2022-001199;Ordine;;WATERS SPA;04742591003;Manutenzione waters;Servizi di riparazione e manutenzione di attrezzature da laboratorio;02/12/2022;02/12/2022;02/12/2022;0;0,00;0,00;LAB. PRODOTTI VERNICIANTI;97425580152;23-AFFIDAMENTO DIRETTO;3.415,00;
Z0138D8AF8;2022-001200;Ordine;;ETTORE PASQUALI S.R.L.;04892610157;Lamp;Attrezzature da laboratorio, ottiche e di precisione.;02/12/2022;02/12/2022;02/12/2022;0;0,00;0,00;LAB. SOSTANZE GRASSE, DERIVATI E TECNOLOGIE OLEARIE;97425580152;23-AFFIDAMENTO DIRETTO;152,60;
949838399B;2022-001065;Contratto;;OSBORNE CLARKE STUDIO LEGALE;10924500159;Assistenza legale;Lavori di costruzione;15/12/2022;21/11/2022;30/06/2023;180;0,00;0,00;AFFARI GENERALI E CONTRIBUTI;97425580152;23-AFFIDAMENTO DIRETTO;120.640,00;
ZCF38D9469;2022-001201;Ordine;;UNI - ENTE NAZIONALE ITALIANO DI UNIFICAZIONE;80037830157;UNI FT. NOVEMBRE;Servizi di prove tecniche, analisi, di laboratorio e relativa consulenza;30/11/2022;30/11/2022;30/11/2022;0;0,00;0,00;NORMAZIONE;97425580152;23-AFFIDAMENTO DIRETTO;161,50;
ZA138DBA04;2022-001202;Ordine;;MANUTAN ITALIA SPA;09816660154;Sacchi Blu per Rifiuti;Macchine e apparecchi, attrezzature e articoli di consumo elettrici, illuminazione;30/11/2022;30/11/2022;30/11/2022;0;0,00;0,00;Facility Management;97425580152;23-AFFIDAMENTO DIRETTO;380,25;
ZE738DB16E;2022-001203;Ordine;;KAISER+KRAFT SRL;01627250135;Carrello a cassone;Apparecchiature e atrezzature e forniture informatiche;30/11/2022;30/11/2022;30/11/2022;0;0,00;0,00;Facility Management;97425580152;23-AFFIDAMENTO DIRETTO;809,00;
Z6138DC242;2022-001205;Ordine;;MADE S.C.A.R.L.;10643980963;Check up consulenziali aziende progetto SIMPLER;Servizi di ricerca e sviluppo e relativi Servizi di consulenza;30/11/2022;30/11/2022;30/11/2022;0;0,00;0,00;PROGETTI E SERVIZI;97425580152;23-AFFIDAMENTO DIRETTO;2.000,00;
Z8338E4CD8;2022-001206;Ordine;;MERCK LIFE SCIENCE S.R.L.;13209130155;Acquisto reagenti Merck;Attrezzature da laboratorio, ottiche e di precisione.;02/12/2022;02/12/2022;02/12/2022;0;0,00;0,00;CROMATOGRAFIA;97425580152;23-AFFIDAMENTO DIRETTO;347,60;
Z6238E53A3;2022-001207;Ordine;;MERCK LIFE SCIENCE S.R.L.;13209130155;Filtri Solari STD;Attrezzature da laboratorio, ottiche e di precisione.;02/12/2022;02/12/2022;02/12/2022;0;0,00;0,00;CROMATOGRAFIA;97425580152;23-AFFIDAMENTO DIRETTO;495,50;"LGC STANDARDS SRL 03948960962; MERCK LIFE SCIENCE S.R.L. 13209130155; LAB INSTRUMENTS SRL 03176570723"
Z4B38E6207;2022-001208;Ordine;;AGILENT TECHNOLOGIES ITALIA SPA;12785290151;Acquisto consumabili Agilent;Attrezzature da laboratorio, ottiche e di precisione.;02/12/2022;02/12/2022;02/12/2022;0;0,00;0,00;CROMATOGRAFIA;97425580152;23-AFFIDAMENTO DIRETTO;1.091,95;
ZD838E7371;2022-001209;Ordine;;"VEOLIA WATER TECHNOLOGIES ITALIA SPA		";03129770156;filtri veolia;Servizi di riparazione e manutenzione di attrezzature da laboratorio;06/12/2022;06/12/2022;06/12/2022;0;0,00;0,00;LAB. PRODOTTI VERNICIANTI;97425580152;23-AFFIDAMENTO DIRETTO;2.823,66;
Z8938E77A4;2022-001210;Ordine;;RS COMPONENTS S.P.A.;10578740150;Tasselli e chiodi per Officina;Macchine e apparecchi, attrezzature e articoli di consumo elettrici, illuminazione;02/12/2022;02/12/2022;02/12/2022;0;0,00;0,00;Facility Management;97425580152;23-AFFIDAMENTO DIRETTO;40,93;
Z3938E7B92;2022-001211;Ordine;;NUCCICAR S.R.L.;06017640969;Nuccicar Touran;Servizi di riparazione, manutenzione e affini di veicoli e attrezzature connesse;02/12/2022;02/12/2022;02/12/2022;0;0,00;0,00;Facility Management;97425580152;23-AFFIDAMENTO DIRETTO;567,25;
ZEA38E7D32;2022-001213;Ordine;;LYRECO ITALIA S.P.A.;11582010150;Cartucce Dymo Letratag;Cancelleria, materiale e attrezzature di consumo per ufficio;02/12/2022;02/12/2022;02/12/2022;0;0,00;0,00;Facility Management;97425580152;23-AFFIDAMENTO DIRETTO;112,10;
ZB638E8C98;2022-001214;Ordine;;LABVANTAGE SOLUTIONS EUROPE LTDITALIAN BRANCH;06614860960;Interfaccia LIMS-ESB-Gedoc;Pacchetti software e sistemi di informazione;06/12/2022;06/12/2022;06/12/2022;0;0,00;0,00;UFFICIO ANALISI;97425580152;04-PROCEDURA NEGOZIATA SENZA PREVIA PUBBLICAZIONE;11.625,00;
Z2038E8D58;2022-001215;Ordine;;INFOCAMERE SOC.CONSORTILE DI INFORMATICA DELLE CAMERE DI COMMERCIO ITALIANE PER AZ.;02313821007;Interfaccia LIMS-ESB-Gedoc;Pacchetti software e sistemi di informazione;06/12/2022;06/12/2022;06/12/2022;0;0,00;0,00;UFFICIO ANALISI;97425580152;04-PROCEDURA NEGOZIATA SENZA PREVIA PUBBLICAZIONE;3.500,00;
Z6138EB083;2022-001217;Ordine;;C.R.C. CENTRO RICERCHE CHIMICHE SRL;01961120175;analisi dei cianuri;Servizi di prove tecniche, analisi, di laboratorio e relativa consulenza;06/12/2022;06/12/2022;06/12/2022;0;0,00;0,00;LAB. PRODOTTI VERNICIANTI;97425580152;23-AFFIDAMENTO DIRETTO;420,00;
Z483455C95;2022-001218;Ordine;;SAT SERVICE AIR TEAM;03650950169;RIPARAZIONE COMPRESSORE;Servizi di riparazione e manutenzione di impianti di edifici;05/12/2022;05/12/2022;05/12/2022;0;0,00;0,00;Facility Management;97425580152;23-AFFIDAMENTO DIRETTO;327,80;
ZC638EB725;2022-001219;Ordine;;G.S.G. SRL;07367140154;spostamenti da seta a carta;"Servizi di riparazione e manutenzione di impianti di edifici; altri Servizi di comunita', sociali e personali";05/12/2022;05/12/2022;05/12/2022;0;0,00;0,00;Facility Management;97425580152;23-AFFIDAMENTO DIRETTO;9.225,16;
ZCE38EBD39;2022-001221;Ordine;;AERRE SERVICE S.R.L.;04956310967;SPOSTAMENTO FRIGORIFERI;altri Servizi di comunita', sociali e personali;05/12/2022;05/12/2022;05/12/2022;0;0,00;0,00;Facility Management;97425580152;23-AFFIDAMENTO DIRETTO;1.803,10;
Z2238EC2D4;2022-001222;Ordine;;DAVID DE FILIPPI;DFLDVD69A15G478I;tappeto entrata ssog;Macchine e apparecchi, attrezzature e articoli di consumo elettrici, illuminazione;05/12/2022;05/12/2022;05/12/2022;0;0,00;0,00;Facility Management;97425580152;23-AFFIDAMENTO DIRETTO;458,00;
Z6338EE504;2022-001223;Ordine;;ECOCLIMA SRL;04004820967;spostamento condizionatori precisione;altri Servizi di comunita', sociali e personali;05/12/2022;05/12/2022;05/12/2022;0;0,00;0,00;Facility Management;97425580152;23-AFFIDAMENTO DIRETTO;9.635,00;
ZAF38F589B;2022-001224;Ordine;;VWR INTERNATIONAL SRL;12864800151;"Semimaschere Facciali 3M
modello 7502 - 3M 7502 MIS. M con valvola di sfiato e filtri a baionetta";"Indumenti e calzature ad uso professionale, speciale e accessori; Servizi di posta e corriere";06/12/2022;06/12/2022;06/12/2022;0;0,00;0,00;Facility Management;97425580152;23-AFFIDAMENTO DIRETTO;336,60;
Z2638F435E;2022-001226;Ordine;;EUROLAB SRL;02076500343;COLONNINE WATERS;Sostanze chimiche;06/12/2022;06/12/2022;06/12/2022;0;0,00;0,00;Facility Management;97425580152;23-AFFIDAMENTO DIRETTO;1.513,60;
Z15368223D;2022-001227;Ordine;;ASSING SPA;06725640582;Integrazione ordine 565  - Spostamento SEM;altri Servizi di comunita', sociali e personali;13/12/2022;13/12/2022;13/12/2022;0;0,00;0,00;LAB. COSMETICA E DETERGENZA;97425580152;23-AFFIDAMENTO DIRETTO;1.424,50;
ZAE38F5856;2022-001229;Ordine;;WALCO SPA;02479860260;FORNITURA POLTRONE DIREZIONALI;Mobili da ufficio, arredi, elettrodomestici;06/12/2022;06/12/2022;06/12/2022;0;0,00;0,00;Facility Management;97425580152;23-AFFIDAMENTO DIRETTO;9.944,00;
ZC338EE07F;2022-001230;Ordine;;WILLIS ITALIA SPA;03902220486;Polizze RC auto 2023 su automezzi aziendali;Servizi assicurativi;06/12/2022;06/12/2022;06/12/2022;0;0,00;0,00;AFFARI GENERALI E CONTRIBUTI;97425580152;23-AFFIDAMENTO DIRETTO;4.723,66;
Z4F38F5C25;2022-001231;Ordine;;CONVERGE SPA;04472901000;CONVERGE MAT.PER STAMPANTE;Cancelleria, materiale e attrezzature di consumo per ufficio;13/12/2022;13/12/2022;13/12/2022;0;0,00;0,00;Facility Management;97425580152;23-AFFIDAMENTO DIRETTO;227,00;
Z3838F57E8;2022-001232;Ordine;;CUCCHI SERGIO SRL;02353410968;Installazione serrande manuali e staffe per caldaie FF - Lab Emissioni;Servizi di riparazione e manutenzione di attrezzature da laboratorio;06/12/2022;06/12/2022;06/12/2022;0;0,00;0,00;LABORATORIO EMISSIONI;97425580152;23-AFFIDAMENTO DIRETTO;1.980,00;
ZCC38F6262;2022-001233;Ordine;;SIAD S.P.A.;00209070168;riparazione riduttori pressione;Servizi di riparazione e manutenzione di attrezzature da laboratorio;06/12/2022;06/12/2022;06/12/2022;0;0,00;0,00;LABORATORIO EMISSIONI;97425580152;23-AFFIDAMENTO DIRETTO;650,00;
8702720FB8;2022-001234;Ordine;;P.A. PROTEZIONE ANTINCENDIO S.r.l.;06024070960;P.A FT 153638;Servizi di riparazione e manutenzione di impianti di edifici;07/12/2022;07/12/2022;07/12/2022;0;0,00;0,00;Facility Management;97425580152;23-AFFIDAMENTO DIRETTO;686,01;
ZB038F6795;2022-001235;Ordine;;LEICA MICROSYSTEMS SRL;09933630155;Paraffina;Attrezzature da laboratorio, ottiche e di precisione.;13/12/2022;13/12/2022;13/12/2022;0;0,00;0,00;LAB. PRODOTTI VERNICIANTI;97425580152;23-AFFIDAMENTO DIRETTO;267,15;
8702720FB8;2022-001236;Ordine;;P.A. PROTEZIONE ANTINCENDIO S.r.l.;06024070960;P.A FT 153920;Servizi di riparazione e manutenzione di impianti di edifici;06/12/2022;06/12/2022;06/12/2022;0;0,00;0,00;Facility Management;97425580152;23-AFFIDAMENTO DIRETTO;2.084,82;
Z9038F709B;2022-001238;Ordine;;MERCK LIFE SCIENCE S.R.L.;13209130155;cartucce formaldeide;Attrezzature da laboratorio, ottiche e di precisione.;13/12/2022;13/12/2022;13/12/2022;0;0,00;0,00;LAB. PRODOTTI VERNICIANTI;97425580152;23-AFFIDAMENTO DIRETTO;683,00;
Z4D3908F79;2022-001241;Ordine;;AVL ITALIA S.R.L.;02676930015;Manutenzione straordinaria PEMS LD;Servizi di riparazione e manutenzione di attrezzature da laboratorio;13/12/2022;13/12/2022;13/12/2022;0;0,00;0,00;LABORATORIO EMISSIONI;97425580152;23-AFFIDAMENTO DIRETTO;8.179,00;
Z5E3908B3B;2022-001243;Ordine;;MERCK LIFE SCIENCE S.R.L.;13209130155;"fiale aldeidi - LpDNPH H Series Cartridges H10, volume 3 mL

https://www.sigmaaldrich.com/IT/it/product/supelco/505315
";Attrezzature da laboratorio, ottiche e di precisione.;12/12/2022;12/12/2022;12/12/2022;0;0,00;0,00;LABORATORIO EMISSIONI;97425580152;23-AFFIDAMENTO DIRETTO;533,00;
Z2B390901D;2022-001244;Ordine;;ENI S.P.A.;00484960588;NUOVO ORDINE ENI SPA (CARTE CARBURANTE);Prodotti derivati dal petrolio;13/12/2022;13/12/2022;13/12/2022;0;0,00;0,00;Facility Management;97425580152;23-AFFIDAMENTO DIRETTO;1.564,00;
Z9339119F5;2022-001246;Ordine;;AXOTEC SRL;05764070966;SALE PER ADOLCITORE;Macchine e apparecchi, attrezzature e articoli di consumo elettrici, illuminazione;13/12/2022;13/12/2022;13/12/2022;0;0,00;0,00;Facility Management;97425580152;23-AFFIDAMENTO DIRETTO;380,00;
8349380e54;2022-001247;Ordine;;EXACTA + OPTECH LABCENTER S.P.A.;01022690364;REAGENTI EXACTA GARA;Sostanze chimiche;13/12/2022;13/12/2022;13/12/2022;0;0,00;0,00;Facility Management;97425580152;23-AFFIDAMENTO DIRETTO;1.153,00;
8665765F7D;2022-001249;Ordine;;ETTORE PASQUALI S.R.L.;04892610157;ETTORE PASQUALI (guanti tg XS );Attrezzature da laboratorio, ottiche e di precisione.;14/12/2022;14/12/2022;14/12/2022;0;0,00;0,00;Facility Management;97425580152;23-AFFIDAMENTO DIRETTO;315,00;
ZF73915835;2022-001250;Ordine;;REGENT INTERNATIONAL SRL;01262990581;REGENT FT. 9216/E1  hotels e voli;Servizi di agenzie di viaggio, operatori turistici e Servizi di assistenza turistica - Servizi di supporto al trasporto terrestre, per via d'acqua e aereo;14/12/2022;14/12/2022;14/12/2022;0;0,00;0,00;"PROGETTI E SERVIZI; LABORATORIO EMISSIONI; NORMAZIONE";97425580152;23-AFFIDAMENTO DIRETTO;2.065,82;
ZAF3915869;2022-001251;Ordine;;REGENT INTERNATIONAL SRL;01262990581;REGENT FT. 9220/E1 Hotel naz.;Servizi di agenzie di viaggio, operatori turistici e Servizi di assistenza turistica - Servizi di supporto al trasporto terrestre, per via d'acqua e aereo;14/12/2022;14/12/2022;14/12/2022;0;0,00;0,00;LABORATORIO EMISSIONI;97425580152;23-AFFIDAMENTO DIRETTO;87,27;
Z5538F6F69;2022-001253;Ordine;;THE PRINT STORE SRL-;05274820967;Stampa 140 biglietti natale a colori F/R (carta 350 gr 4+4 10x6 con foro centrale);Gioielli, medaglie articoli affini, regali premi;14/12/2022;14/12/2022;14/12/2022;0;0,00;0,00;DIREZIONE GENERALE;97425580152;23-AFFIDAMENTO DIRETTO;73,00;
Z0D3908EE4;2022-001254;Ordine;;STA SRL;01852410032;manutenzione PG350;Servizi di riparazione e manutenzione di attrezzature da laboratorio;14/12/2022;14/12/2022;14/12/2022;0;0,00;0,00;LABORATORIO EMISSIONI;97425580152;23-AFFIDAMENTO DIRETTO;2.532,00;
ZB3392C057;2022-001255;Ordine;;TRASPORTI ZINGALI SRL;02064240183;Zingali - FT 56_2022;"Attrezzature da laboratorio, ottiche e di precisione.; Servizi di posta e corriere";20/12/2022;20/12/2022;20/12/2022;0;2.606,63;2.606,63;LABORATORIO ANALISI;97425580152;23-AFFIDAMENTO DIRETTO;2.606,63;
Z25392527E;2022-001256;Ordine;;SIAD S.P.A.;00209070168;SIAD FT OLII;Prodotti derivati dal petrolio;20/12/2022;20/12/2022;20/12/2022;0;0,00;0,00;RESPONSABILE AREA SSOG;97425580152;23-AFFIDAMENTO DIRETTO;652,93;
Z39391CE9E;2022-001257;Ordine;;MERCK LIFE SCIENCE S.R.L.;13209130155;Cybuthryn_Merck;Attrezzature da laboratorio, ottiche e di precisione.;19/12/2022;19/12/2022;19/12/2022;0;0,00;0,00;CROMATOGRAFIA;97425580152;23-AFFIDAMENTO DIRETTO;242,00;
Z72391D237;2022-001258;Ordine;;PROJECT CLEAN SRL;07098590966;BONIFICA IMPIANTI E CANALI CONDIZIONAMENTO;Servizi di riparazione e manutenzione di impianti di edifici;15/12/2022;15/12/2022;15/12/2022;0;0,00;0,00;Facility Management;97425580152;23-AFFIDAMENTO DIRETTO;14.730,00;
Z8F391D426;2022-001259;Ordine;;CHEBIOS SRL;00391470580;Colonne ReproSil ODS2;Attrezzature da laboratorio, ottiche e di precisione.;19/12/2022;19/12/2022;19/12/2022;0;0,00;0,00;CROMATOGRAFIA;97425580152;23-AFFIDAMENTO DIRETTO;1.091,20;
Z273915CEF;2022-001260;Ordine;;DALLAGIOVANNA E C.;10146280960;intervento ascensore cons.044-915_3;Servizi di riparazione e manutenzione di impianti di edifici;15/12/2022;15/12/2022;15/12/2022;0;0,00;0,00;Facility Management;97425580152;23-AFFIDAMENTO DIRETTO;95,68;
ZA8391587C;2022-001261;Ordine;;ALESSANDRA BUSTI;BSTLSN75C69C933Z;Assistenza LIMS;Pacchetti software e sistemi di informazione;20/12/2022;20/12/2022;20/12/2022;0;0,00;0,00;UFFICIO ANALISI;97425580152;23-AFFIDAMENTO DIRETTO;760,00;
Z7A3920D3D;2022-001262;Ordine;;ACCREDIADIPARTIMENTO LABORATORI DI PROVA;10566361001;ACCREDIA Estensione per il laboratorio SPESE;Servizi di prove tecniche, analisi, di laboratorio e relativa consulenza;16/12/2022;16/12/2022;16/12/2022;0;0,00;0,00;QUALITA';97425580152;23-AFFIDAMENTO DIRETTO;500,00;
Z4C3921182;2022-001264;Ordine;;ISP Salzbergen GmbH & Co. KG;;analisi olio lubrificante astm d6082;Servizi di prove tecniche, analisi, di laboratorio e relativa consulenza;20/12/2022;20/12/2022;20/12/2022;0;0,00;0,00;LAB. LUBRIFICANTI;97425580152;23-AFFIDAMENTO DIRETTO;133,00;
Z5A392144D;2022-001265;Ordine;;ETTORE PASQUALI S.R.L.;04892610157;Apparati SCHROETDETER;Attrezzature da laboratorio, ottiche e di precisione.;20/12/2022;20/12/2022;20/12/2022;0;0,00;0,00;LAB. COSMETICA E DETERGENZA;97425580152;23-AFFIDAMENTO DIRETTO;970,50;
Z9339222AF;2022-001266;Ordine;;METTLER TOLEDO S.P.A.;00718330152;Software LabX Express - Bilancia;Attrezzature da laboratorio, ottiche e di precisione.;15/12/2022;15/12/2022;15/12/2022;0;0,00;0,00;LABORATORIO EMISSIONI;97425580152;23-AFFIDAMENTO DIRETTO;2.792,70;
Z0239226BE;2022-001267;Ordine;;MERCK LIFE SCIENCE S.R.L.;13209130155;ACQUA  SIGMA;"Sostanze chimiche; Attrezzature da laboratorio, ottiche e di precisione.";15/12/2022;15/12/2022;15/12/2022;0;0,00;0,00;Facility Management;97425580152;23-AFFIDAMENTO DIRETTO;1.719,00;
8665765F7D;2022-001268;Ordine;;ETTORE PASQUALI S.R.L.;04892610157;VETRERIA PASQUALI GARA;Attrezzature da laboratorio, ottiche e di precisione.;19/12/2022;19/12/2022;19/12/2022;0;0,00;0,00;Facility Management;97425580152;23-AFFIDAMENTO DIRETTO;451,10;
8349380e54;2022-001269;Ordine;;EXACTA + OPTECH LABCENTER S.P.A.;01022690364;PRODOTTI EXACTA;Sostanze chimiche;16/12/2022;16/12/2022;16/12/2022;0;0,00;0,00;Facility Management;97425580152;23-AFFIDAMENTO DIRETTO;281,60;
ZCD3930FE7;2022-001273;Ordine;;PHENOMENEX SRL;02691021204;Acquisto consumabili Phenomenex;Attrezzature da laboratorio, ottiche e di precisione.;21/12/2022;21/12/2022;21/12/2022;0;0,00;0,00;LAB. SOSTANZE GRASSE, DERIVATI E TECNOLOGIE OLEARIE;97425580152;23-AFFIDAMENTO DIRETTO;1.066,30;
Z153933497;2022-001275;Ordine;;LECO ITALY S.R.L.;10123960154;Materiale di consumo LECO;Attrezzature da laboratorio, ottiche e di precisione.;20/12/2022;20/12/2022;20/12/2022;0;0,00;0,00;LABORATORIO ANALISI;97425580152;23-AFFIDAMENTO DIRETTO;3.203,80;
Z313933641;2022-001276;Ordine;;SIAD S.P.A.;00209070168;gas standard;Prodotti derivati dal petrolio;20/12/2022;20/12/2022;20/12/2022;0;0,00;0,00;LABORATORIO EMISSIONI;97425580152;23-AFFIDAMENTO DIRETTO;6.947,00;
Z013933901;2022-001277;Ordine;;L.M.P. SRL;05697910585;Analisi in subappalto a L.M.P. per determinazione PCB e PCT come da offerta n. 044/22/ML;Servizi di prove tecniche, analisi, di laboratorio e relativa consulenza;20/12/2022;20/12/2022;20/12/2022;0;0,00;0,00;LABORATORIO ANALISI;97425580152;23-AFFIDAMENTO DIRETTO;840,00;
ZB73933DF0;2022-001278;Ordine;;EUROPEAN TECHNOLOGY S.R.L.;00840600191;Acquisto parte di ricambio European Tech.;Servizi di riparazione e manutenzione di attrezzature da laboratorio;20/12/2022;20/12/2022;20/12/2022;0;0,00;0,00;LAB. LUBRIFICANTI;97425580152;23-AFFIDAMENTO DIRETTO;425,13;
Z342E620BD;2022-001279;Ordine;;PRESTING SRL;02725380584;Parere Prevenzione incendi relativo all'installazione /realizzazione di una cabina elettrica nei locali 90 e 91 a San Donato Milanese;Servizi commerciali vari ed altri servizi;20/12/2022;20/12/2022;20/12/2022;0;0,00;0,00;Facility Management;97425580152;23-AFFIDAMENTO DIRETTO;1.000,00;
Z6C393648D;2022-001280;Ordine;;LSI LASTEM SRL;04407090150;manutenzione centralina meteo;Servizi di riparazione e manutenzione di attrezzature da laboratorio;21/12/2022;21/12/2022;21/12/2022;0;0,00;0,00;LABORATORIO EMISSIONI;97425580152;23-AFFIDAMENTO DIRETTO;946,00;
ZAA393C79F;2022-001281;Ordine;;CONVERGE SPA;04472901000;Copie eccedenti Multifunzione Samsung X3280_2022_Carta;Apparecchiature e atrezzature e forniture informatiche;21/12/2022;21/12/2022;21/12/2022;0;0,00;0,00;Facility Management;97425580152;23-AFFIDAMENTO DIRETTO;570,24;
ZE1393FCAF;2022-001283;Ordine;;SIAD S.P.A.;00209070168;SIAD Fattura;Prodotti derivati dal petrolio;22/12/2022;22/12/2022;22/12/2022;0;0,00;0,00;RESPONSABILE AREA SSC;97425580152;23-AFFIDAMENTO DIRETTO;163,50;
Z8A37B914C;2022-001285;Ordine;;MITAMBIENTE SRL;06317870969;Mitambiente - Fattura 863_2022;Servizi di posta e corriere;23/12/2022;23/12/2022;23/12/2022;0;0,00;0,00;LABORATORIO ANALISI;97425580152;23-AFFIDAMENTO DIRETTO;650,00;
ZB5393EFD8;2022-001286;Ordine;2021-000877 ;G.S.G. SRL;07367140154;Manutenzione correttiva cappe;Servizi di riparazione e manutenzione di attrezzature da laboratorio;23/12/2022;23/12/2022;23/12/2022;0;0,00;0,00;Facility Management;97425580152;23-AFFIDAMENTO DIRETTO;22.083,71;
Z223949138;2022-001287;Ordine;;FEDEX EXPRESS ITALY SRL;;ONERI DOGANALI;Servizi di posta e corriere;23/12/2022;23/12/2022;23/12/2022;0;0,00;0,00;LABORATORIO SETA;97425580152;23-AFFIDAMENTO DIRETTO;11,27;
ZAB39493D4;2022-001288;Ordine;;SEGRA '95 SRL (MAIL BOXES);11539210150;SEGRA FT;Servizi di posta e corriere;26/12/2022;26/12/2022;26/12/2022;0;0,00;0,00;Facility Management;97425580152;23-AFFIDAMENTO DIRETTO;925,37;
